{"text_format":"3","workbook":"xlsx","n_sheets":1,"sheets":["ресур. обесп."],"not_rendered":{"defined_names":2},"read":"whole","date_system":"1900"}

{"sheet":"ресур. обесп.","index":0,"n_rows":40,"n_cols":11,"rows_kept":40,"merged":[[1,9,1,10],[2,1,2,10],[3,1,3,10],[7,0,9,2],[10,0,12,0],[10,1,12,2],[13,7,17,7],[13,8,17,8],[13,9,17,9],[18,7,19,7],[18,8,19,8],[18,9,19,9],[24,1,24,2],[26,1,26,2],[29,1,29,2],[31,1,31,2],[39,0,39,10],[40,1,40,4]]}
[{"$nulls":10},"Приложение 2"]
[{"$nulls":9},"к  Отчету о реализации Программы"]
[null," Отчет об исполнении мероприятий муниципальной программы города Усолье-Сибирское                                 "]
[null," \"Охрана окружающей среды\" на 2019-2027 годы за 2025 год                                                      "]
[]
["№ п/п","Наименование муниципальной программы, подпрограммы, основного мероприятия, мероприятия, проекта","Участники муниципальной программы, участники подпрограммы","Источник финансирования","Объем финансирования, предусмотренный на 2025 год, руб.","Профинансировано за 2025 год, руб.","Процент исполнения \n(гр 6/гр5*100) \n%","Наименование показателя объема мероприятия, единица измерения","Плановое значение показателя мероприятия на 2025 год","Фактическое значение показателя мероприятия за 2025 год","Обоснование причин отклонения (при наличии)"]
[1,2,3,4,5,6,7,8,9,10,11]
["Муниципальная программа города Усолье-Сибирское \n«Охрана окружающей среды» на 2019 – 2027 годы ",null,null,"Всего ",{"$f":"E9+E10","v":{"v":37398410.87,"d":"37,398,410.87"}},{"$f":"F9+F10","v":{"v":37262712.45,"d":"37,262,712.45"}},{"$f":"F8/E8*100","v":{"v":99.63715458265942,"d":"99.64"}},"*","*","*","*"]
[{"$nulls":3},"местный бюджет",{"$f":"E12+E25+E27+E30+E32","v":{"v":37398410.87,"d":"37,398,410.87"}},{"$f":"F12+F25+F27+F32+F30","v":{"v":37262712.45,"d":"37,262,712.45"}},{"v":99.63715458265942,"d":"99.64"},"*","*","*","*"]
[{"$nulls":3},"областной бюджет",{"$f":"E13","v":{"v":0,"d":"0.00"}},{"$f":"F13","v":{"v":0,"d":"0.00"}},{"v":100,"d":"100.00"},"*","*","*","*"]
["1.","Подпрограмма № 1 \"Снижение экологической нагрузки на городскую среду города Усолье-Сибирское\" на 2019-2027 годы",null,"Всего ",{"$f":"E12+E13","v":{"v":25203732.47,"d":"25,203,732.47"}},{"$f":"F12+F13","v":{"v":25093843.39,"d":"25,093,843.39"}},{"$f":"F11/E11*100","v":{"v":99.56399680035169,"d":"99.56"}},"*","*","*","*"]
[{"$nulls":3},"местный бюджет",{"$f":"E14+E19+E21+E22+E23+E24","v":{"v":25203732.47,"d":"25,203,732.47"}},{"$f":"F14+F19+F21+F22+F23+F24","v":{"v":25093843.39,"d":"25,093,843.39"}},{"$f":"F12/E12*100","v":{"v":99.56399680035169,"d":"99.56"}},"*","*","*","*"]
[{"$nulls":3},"областной бюджет",{"v":0,"d":"0.00"},{"v":0,"d":"0.00"},99.99,"*","*","*","*"]
["1.1.","Основное мероприятие 1.1.                                           Уборка и улучшение санитарного состояния территории города Усолье-Сибирское","Отдел по благоустройству и экологии города комитета по городскому хозяйству  администрации города","местный бюджет ",{"$f":"E15+E16+E17+E18","v":{"v":16057621.120000001,"d":"16,057,621.12"}},{"$f":"F15+F16+F17+F18","v":{"v":15947930.04,"d":"15,947,930.04"}},{"$f":"F14/E14*100","v":{"v":99.31689084466329,"d":"99.32"}},"Доля исполненных мероприятий\nпо уборке и улучшению\nсанитарного состояния\nтерритории города Усолье-\nСибирское, от запланированных (%)",100,100,"*"]
["1.1.1","Мероприятие 1.1.1 \nУборка территории города Усолье-Сибирское в период месячника по санитарной очистке и общегородского субботника","Отдел по благоустройству и экологии города комитета по городскому хозяйству  администрации города","местный бюджет ",{"v":4364917.26,"d":"4,364,917.26"},{"v":4364481.78,"d":"4,364,481.78"},{"$f":"F15/E15*100","v":{"v":99.9900231785837,"d":"99.99"}},{"$nulls":3},"Отклонение в финансировании в размере \n435,48 руб. - экономия по результатам заключенных муниципальных контрактов."]
["1.1.2","Мероприятие 1.1.2 \nСбор, транспортирование и утилизация (захоронение) твердых коммунальных отходов с несанкционированных мест размещения отходов","Отдел по благоустройству и экологии города комитета по городскому хозяйству  администрации города","местный бюджет ",{"v":4169175.9,"d":"4,169,175.90"},{"v":4154666.49,"d":"4,154,666.49"},{"$f":"F16/E16*100","v":{"v":99.65198374095947,"d":"99.65"}},{"$nulls":3},"Отклонение в финансировании в размере \n14 509,41 руб. - экономия по результатам заключеных муниципальных контрактов."]
["1.1.3","Мероприятие 1.1.3. Содержание городских кладбищ","Отдел по благоустройству и экологии города комитета по городскому хозяйству  администрации города","местный бюджет ",{"v":7401027.96,"d":"7,401,027.96"},{"v":7306281.77,"d":"7,306,281.77"},{"$f":"F17/E17*100","v":{"v":98.71982391483898,"d":"98.72"}},{"$nulls":3},"Отклонение в финансировании в размере \n94 746,19 руб. - экономия по результатам исполнения муниципального контракта."]
["1.1.4.","Мероприятие 1.1.6 \nПодбор павших животных на территории города Усолье-Сибирское","Отдел по благоустройству и экологии города комитета по городскому хозяйству  администрации города","местный бюджет ",{"v":122500,"d":"122,500.00"},{"v":122500,"d":"122,500.00"},{"$f":"F18/E18*100","v":{"v":100,"d":"100.00"}}]
["1.2.","Основное мероприятие 1.2. Создание и обслуживание мест (площадок) накопления твердых коммунальных отходов","Отдел по благоустройству и экологии города комитета по городскому хозяйству  администрации города","   местный бюджет  ",{"$f":"E20","v":{"v":6576312.77,"d":"6,576,312.77"}},{"$f":"F20","v":{"v":6576312.77,"d":"6,576,312.77"}},{"$f":"F19/E19*100","v":{"v":100,"d":"100.00"}},"Количество\nобслуживаемых мест\n(площадок) накопления твердых\nкоммунальных\nотходов (ед.)",174,174]
["1.2.1.","Мероприятие 1.2.2 \nОбслуживание мест (площадок) накопления твердых коммунальных отходов","Отдел по благоустройству и экологии города комитета по городскому хозяйству  администрации города","   местный бюджет  ",{"v":6576312.77,"d":"6,576,312.77"},{"v":6576312.77,"d":"6,576,312.77"},{"$f":"F20/E20*100","v":{"v":100,"d":"100.00"}}]
["1.3.","Основное мероприятие 1.3 \nМероприятия по отлову и содержанию животных без владельцев","Отдел по благоустройству и экологии города комитета по городскому хозяйству  администрации города","   местный бюджет  ",{"v":900000,"d":"900,000.00"},{"v":899802,"d":"899,802.00"},{"$f":"F21/E21*100","v":{"v":99.978,"d":"99.98"}},"Количество отловленных животных без владельцев (шт.)",535,535,"Отклонение в финансировании в размере \n198,00 руб. - экономия по результатам исполнения муниципального контракта."]
["1.4.","Основное мероприятие 1.4. Мероприятия по уничтожению дикорастущих наркосодержащих растений","Отдел по благоустройству и экологии города комитета по городскому хозяйству  администрации города","местный бюджет ",{"v":200000,"d":"200,000.00"},{"v":200000,"d":"200,000.00"},{"$f":"F22/E22*100","v":{"v":100,"d":"100.00"}},"Доля уничтоженных очагов произрастания дикорастущих наркосодержащих растений, от количества таких очагов, выявленных гражданами, полицией (%)",100,100]
["1.5.","Основное мероприятие 1.9. \nПроведение лабораторных исследований на территории города Усолье-Сибирское","Отдел по благоустройству и экологии города комитета по городскому хозяйству  администрации города","местный бюджет ",{"v":212970,"d":"212,970.00"},{"v":212970,"d":"212,970.00"},{"$f":"F23/E23*100","v":{"v":100,"d":"100.00"}},"Количество проведенных лабораторных исследований на территории города Усолье-Сибирское (проб)",7,7]
["1.6.","Основное мероприятие 1.11. \nМероприятия по организации площадки для складирования отходов от зимней уборки на территории г. Усолье-Сибирское","Отдел по благоустройству и экологии города комитета по городскому хозяйству  администрации города","местный бюджет ",{"v":1256828.58,"d":"1,256,828.58"},{"v":1256828.58,"d":"1,256,828.58"},{"v":100,"d":"100.00"},"Доля исполненных мероприятий по проектированию, восстановлению, содержанию полигона для размещения снежных масс, от запланированных, (%)",100,100]
["2.","Подпрограмма № 2 «Озеленение территории города и восстановление природных ресурсов» на 2019-2027 годы",null,"местный бюджет",{"$f":"E26","v":{"v":5709978.33,"d":"5,709,978.33"}},{"$f":"F26","v":{"v":5709978.33,"d":"5,709,978.33"}},{"v":100,"d":"100.00"},"*","*","*","*"]
["2.1.","Основное мероприятие 2.1.                                                         Озеленение территории города","Отдел по благоустройству и экологии города комитета по городскому хозяйству  администрации города","местный бюджет ",{"v":5709978.33,"d":"5,709,978.33"},{"v":5709978.33,"d":"5,709,978.33"},{"v":100,"d":"100.00"},"Доля исполненных мероприятий по содержанию и озеленению объектов общего пользования, расположенных на территории города, от запланированных (%)",100,100]
["3.","Подпрограмма № 3 «Развитие водохозяйственного комплекса» на 2019-2027 годы",null,"местный бюджет",{"$f":"E28+E29","v":{"v":4048289.32,"d":"4,048,289.32"}},{"$f":"F28+F29","v":{"v":4022479.9800000004,"d":"4,022,479.98"}},{"v":99.3624630563707,"d":"99.36"},"*","*","*","*"]
["3.1.","Основное мероприятие\n3.1. Мероприятия по\nпредотвращению разлива\nрек Шелестиха,\nСкипидарка","Отдел по жизнеобеспечению города комитета по городскому хозяйству администрации города; Отдел по\nблагоустройству и\nэкологии комитета по\nгородскому хозяйству\nадминистрации\nгорода","местный бюджет",{"v":1235499.17,"d":"1,235,499.17"},{"v":1235498.36,"d":"1,235,498.36"},99.99,"Протяженность\nочищенного русла рек\nШелестиха,\nСкипидарка (км.)",2.2,2.2," Отклонение в финансировании в размере         \n0,81 руб. -  экономия по результатам исполнения муниципального контракта."]
["3.2.","Основное мероприятие 3.2. Содержание водозаборных скважин","Отдел по жизнеобеспечению города комитета по городскому хозяйству  администрации города","местный бюджет ",{"v":2812790.15,"d":"2,812,790.15"},{"v":2786981.62,"d":"2,786,981.62"},{"$f":"F29/E29*100","v":{"v":99.0824580354848,"d":"99.08"}},"Количество водозаборных скважин, содержание которых выполнено (ед.)",4,4," Отклонение в финансировании в размере         \n25 808,53 руб. -  экономия по результатам исполнения муниципального контракта."]
["4.","Подпрограмма № 4 «Экологическое образование населения» на 2019-2027 годы ",null,"местный бюджет",{"$f":"E31","v":{"v":79200,"d":"79,200.00"}},{"$f":"F31","v":{"v":79200,"d":"79,200.00"}},{"$f":"F30/E30*100","v":{"v":100,"d":"100.00"}},"*","*","*","*"]
["4.1.","Основное мероприятие 4.3. \nИзготовление и установка информационных щитов (баннеров, аншлагов) на территории города Усолье-Сибирское","Отдел по благоустройству и экологии комитета по городскому хозяйству администрации города Усолье-Сибирское","местный бюджет",{"v":79200,"d":"79,200.00"},{"v":79200,"d":"79,200.00"},{"v":100,"d":"100.00"},"Количество изготовленных и установленных информационных щитов (баннеров, аншлагов) на территории города Усолье-Сибирское (шт.)",11,6]
["5.","Подпрограмма № 5 «Предотвращение чрезвычайных ситуаций и обеспечение пожарной безопасности» на 2019-2027 годы",null,"местный бюджет",{"$f":"E33+E34+E36+E37+E35","v":{"v":2357210.75,"d":"2,357,210.75"}},{"$f":"F33+F34+F36+F37+F35","v":{"v":2357210.75,"d":"2,357,210.75"}},{"v":100,"d":"100.00"},"*","*","*","*"]
["5.1.","Основное мероприятие 5.1. Устройство и обновление противопожарных минерализованных полос на территории города Усолье-Сибирское","Отдел по благоустройству и экологии города комитета по городскому хозяйству  администрации города","местный бюджет",{"v":1370575,"d":"1,370,575.00"},{"v":1370575,"d":"1,370,575.00"},{"$f":"F33/E33*100","v":{"v":100,"d":"100.00"}},"Протяженность\nминерализованной\nполосы, подлежащей\nопашке и прочистке (км.)\n",35.26,35.26]
["5.2.","Основное мероприятие 5.2                                                                              Противопожарная пропаганда (баннеры, листовки, календари, магниты)","МКУ \"Служба г. Усолье-Сибирское по вопросам ГОЧС и ПБ\"","местный бюджет",{"v":97840,"d":"97,840.00"},{"v":97840,"d":"97,840.00"},{"$f":"F34/E34*100","v":{"v":100,"d":"100.00"}},"Количество\nизготовленной\nинформации по\nпротивопожарной\nпропаганде (шт.)",{"v":6000,"d":"6,000"},{"v":6000,"d":"6,000"}]
["5.3.","Основное мероприятие 5.3. \nОрганизация тушения лесных пожаров в границах города Усолье-Сибирское","МКУ \"Служба г. Усолье-Сибирское по вопросам ГОЧС и ПБ\"","местный бюджет",{"v":43281.71,"d":"43,281.71"},{"v":43281.71,"d":"43,281.71"},{"v":100,"d":"100.00"},"Доля исполненных мероприятий по тушению лесных пожаров в границах города Усолье-Сибирское от запланированных (%).",100,100]
["5.4.","Основное мероприятие 5.5. Мероприятия по обеспечению безопасности на водных объектах","Отдел по благоустройству и экологии города комитета по городскому хозяйству  администрации города","местный бюджет",{"v":35100,"d":"35,100.00"},{"v":35100,"d":"35,100.00"},{"v":100,"d":"100.00"},"Количество изготовленных и установленных информационных аншлагов (знаков) (шт.)",4,3]
["5.5.","Основное мероприятие 5.7. \nПокос травянистой растительности","Отдел по благоустройству и экологии комитета по городскому хозяйству администрации города","местный бюджет",{"v":810414.04,"d":"810,414.04"},{"v":810414.04,"d":"810,414.04"},{"$f":"F37/E37*100","v":{"v":100,"d":"100.00"}},"Площадь скошенной травянистой растительности (100м2)",{"v":1226,"d":"1,226.00"},{"v":1226,"d":"1,226.00"}]
[]
[]
["Мэр города                                                                                                                                                                 М.В. Торопкин"]